fUSD/lending_fUSD_20251201
["ID","MTS","AMOUNT","RATE_DAILY","PERIOD"]
[395307857,1764606640027,-871.68544887,0.00015573,2]
[395307858,1764606640037,-227.28,0.00015715,2]
[395307859,1764606640047,-580.03920939,0.00015762,2]
[395307860,1764606640057,-871.68544887,0.00015794,2]
[395307861,1764606640067,-809.75,0.0001583,2]
[395307862,1764606640076,-11169.29506251,0.00015997,2]
[395307863,1764606640086,-151.0,0.00015997,2]
[395307864,1764606640096,-151.0,0.00015997,2]
[395307866,1764606640105,-552.29203276,0.00016,2]
[395307868,1764606640118,-23669.11750587,0.00016,2]
[395307869,1764606640127,-241751.88629714,0.00016,2]
[395307870,1764606640137,-789436.99019792,0.00016,4]
[395307871,1764606640150,-490.29531354,0.00016,4]
[395307872,1764606640247,500.0,0.00022,30]
[395307873,1764606640379,-733075.63126143,0.00016,4]
[395307874,1764606640390,-871.68544887,0.00016015,2]
[395307875,1764606640400,-580.03920939,0.00016047,2]
[395307876,1764606640410,-809.75,0.00016104,2]
[395307877,1764606640420,-600.0,0.00016105,2]
[395307878,1764606640430,-1680.0,0.00016179,2]
[395307879,1764606640441,-5000.00949158,0.000162,5]
[395307880,1764606640451,-871.68544887,0.00016236,2]
[395307881,1764606640461,-420.0,0.00016318,2]
[395307882,1764606640471,-420.0,0.00016318,2]
[395307883,1764606640480,-580.03920939,0.00016331,2]
[395307884,1764606640490,-809.75,0.00016378,2]
[395307885,1764606640500,-500.0,0.00016438,2]
[395307886,1764606640510,-504.5,0.00016438,2]
[395307887,1764606640520,-500.0,0.00016438,2]
[395307888,1764606640529,-500.0,0.00016438,2]
[395307889,1764606640539,-500.0,0.00016438,2]
[395307890,1764606640549,-500.0,0.00016438,2]
[395307891,1764606640559,-500.0,0.00016438,2]
[395307892,1764606640569,-500.0,0.00016438,2]
[395307893,1764606640578,-500.0,0.00016438,2]
[395307894,1764606640588,-500.0,0.00016438,2]
[395307895,1764606640598,-500.0,0.00016438,2]
[395307896,1764606640608,-500.0,0.00016438,2]
[395307897,1764606640618,-500.0,0.00016438,2]
[395307898,1764606640628,-500.0,0.00016438,2]
[395307899,1764606640638,-500.0,0.00016438,2]
[395307900,1764606640648,-500.0,0.00016438,2]
[395307901,1764606640658,-500.0,0.00016438,2]
[395307902,1764606640667,-500.0,0.00016438,2]
[395307903,1764606640677,-500.0,0.00016438,2]
[395307904,1764606640687,-500.0,0.00016438,2]
[395307905,1764606640696,-500.0,0.00016438,2]
[395307906,1764606640706,-500.0,0.00016438,2]
[395307907,1764606640715,-500.0,0.00016438,2]
[395307908,1764606640724,-378.53423031,0.00016438,2]
[395307909,1764606640734,-500.0,0.00016438,2]
[395307910,1764606640744,-500.0,0.00016438,2]
[395307911,1764606640754,-500.0,0.00016438,2]
[395307913,1764606640763,-500.0,0.00016438,2]
[395307915,1764606640774,-500.0,0.00016438,2]
[395307917,1764606640784,-500.0,0.00016438,2]
[395307919,1764606640793,-500.0,0.00016438,2]
[395307921,1764606640803,-500.0,0.00016438,2]
[395307923,1764606640812,-500.0,0.00016438,2]
[395307925,1764606640821,-500.0,0.00016438,2]
[395307927,1764606640831,-500.0,0.00016438,2]
[395307929,1764606640841,-500.0,0.00016438,2]
[395307931,1764606640851,-500.0,0.00016438,2]
[395307933,1764606640860,-500.0,0.00016438,2]
[395307935,1764606640870,-500.0,0.00016438,2]
[395307936,1764606640880,-500.0,0.00016438,2]
[395307937,1764606640890,-500.0,0.00016438,2]
[395307938,1764606640899,-500.0,0.00016438,2]
[395307939,1764606640909,-500.0,0.00016438,2]
[395307940,1764606640920,-500.0,0.00016438,2]
[395307941,1764606640930,-500.0,0.00016438,2]
[395307942,1764606640939,-500.0,0.00016438,2]
[395307943,1764606640949,-500.0,0.00016438,2]
[395307944,1764606640959,-500.0,0.00016438,2]
[395307945,1764606640969,-546.51,0.00016438,2]
[395307946,1764606640978,-500.0,0.00016438,2]
[395307947,1764606640988,-500.0,0.00016438,2]
[395307948,1764606640997,-500.0,0.00016438,2]
[395307949,1764606641007,-500.0,0.00016438,2]
[395307950,1764606641016,-500.0,0.00016438,2]
[395307951,1764606641025,-500.0,0.00016438,2]
[395307952,1764606641035,-500.0,0.00016438,2]
[395307953,1764606641045,-500.0,0.00016438,2]
[395307954,1764606641055,-500.0,0.00016438,2]
[395307955,1764606641065,-500.0,0.00016438,2]
[395307956,1764606641075,-500.0,0.00016438,2]
[395307957,1764606641085,-500.0,0.00016438,2]
[395307958,1764606641095,-500.0,0.00016438,2]
[395307959,1764606641107,-500.0,0.00016438,2]
[395307960,1764606641117,-500.0,0.00016438,2]
[395307961,1764606641127,-500.0,0.00016438,2]
[395307962,1764606641137,-500.0,0.00016438,2]
[395307963,1764606641147,-500.0,0.00016438,2]
[395307964,1764606641157,-500.0,0.00016438,2]
[395307965,1764606641168,-500.0,0.00016438,2]
[395307966,1764606641177,-500.0,0.00016438,2]
[395307967,1764606641187,-500.0,0.00016438,2]
[395307968,1764606641198,-500.0,0.00016438,2]
[395307969,1764606641208,-500.0,0.00016438,2]
[395307970,1764606641217,-500.0,0.00016438,2]
[395307971,1764606641227,-500.0,0.00016438,2]
[395307972,1764606641237,-500.0,0.00016438,2]
[395307973,1764606641247,-48597.38,0.00016438,2]
[395307974,1764606641258,-10821.11,0.00016438,2]
[395307975,1764606641272,-5369.57,0.00016438,2]
[395307976,1764606641281,-800.0,0.00016438,2]
[395307977,1764606641291,-164.0,0.0001644,2]
[395307978,1764606641302,-164.0,0.0001644,2]
[395307979,1764606641311,-164.0,0.0001644,2]
[395307980,1764606641322,-871.68544887,0.00016458,2]
[395307981,1764606641332,-13495.66,0.00016497,2]
[395307982,1764606641344,-397.0,0.00016551,2]
[395307983,1764606641355,-227.28,0.00016588,2]
[395307984,1764606641366,-357.76401239,0.000166,2]
[395307985,1764606641376,-397.0,0.000166,2]
[395307986,1764606641386,-397.0,0.00016603,2]
[395307987,1764606641396,-580.03920939,0.00016616,2]
[395307988,1764606641407,-397.0,0.0001663,2]
[395307989,1764606641416,-809.75,0.00016652,2]
[395307990,1764606641426,-600.0,0.00016653,2]
[395307991,1764606641435,-871.68544887,0.00016679,2]
[395307992,1764606641445,-397.0,0.00016682,2]
[395307993,1764606641455,-397.0,0.00016701,2]
[395307994,1764606641465,-397.0,0.00016732,2]
[395307995,1764606641475,-535.27864,0.0001683,2]
[395307996,1764606641484,-397.0,0.00016831,2]
[395307997,1764606641494,-397.0,0.00016863,2]
[395307998,1764606641503,-200.0,0.00016864,2]
[395307999,1764606641512,-397.0,0.00016865,2]
[395308000,1764606641522,-397.0,0.00016885,2]
[395308001,1764606641532,-250.0,0.00016899,2]
[395308002,1764606641541,-250.0,0.00016899,2]
[395308003,1764606641550,-1286.42039658,0.000169,2]
[395308004,1764606641560,-400.6727075,0.000169,2]
[395308005,1764606641569,-871.68544887,0.000169,2]
[395308006,1764606641578,-3260.77961776,0.000169,2]
[395308007,1764606641588,-175.13102482,0.000169,2]
[395308008,1764606641597,-580.03920939,0.000169,2]
[395308009,1764606641607,-1434.7941129,0.000169,2]
[395308010,1764606641616,-259.2738847,0.000169,2]
[395308011,1764606641625,-400.67270748,0.00016902,2]
[395308012,1764606641635,-400.67270748,0.00016903,2]
[395308013,1764606641645,-2250.17,0.00016922,2]
[395308014,1764606641654,-809.77706299,0.00016926,2]
[395308015,1764606641663,-397.0,0.00016934,2]
[395308016,1764606641672,-535.27865,0.0001695,2]
[395308017,1764606641681,-501.63692659,0.00016973,2]
[395308018,1764606641690,-642.97345703,0.00016973,2]
[395308019,1764606641700,-500.0,0.00016973,2]
[395308020,1764606641709,-500.0,0.00016973,2]
[395308021,1764606641718,-233.06885898,0.00016973,2]
[395308022,1764606641728,-500.0,0.00016973,2]
[395308023,1764606641737,-500.0,0.00016973,2]
[395308024,1764606641746,-500.0,0.00016973,2]
[395308025,1764606641755,-610.74491434,0.00016973,2]
[395308026,1764606641765,-151.0,0.00016997,2]
[395308027,1764606641774,-397.0,0.00016997,2]
[395308028,1764606641783,-300.0,0.00016999,2]
[395308029,1764606641792,-500.0,0.00016999,2]
[395308030,1764606641802,-500.0,0.00016999,2]
[395308031,1764606641811,-500.0,0.00016999,2]
[395308032,1764606641821,-500.0,0.00016999,2]
[395308033,1764606641830,-767267.62572461,0.00017,2]
[395308034,1764606641840,-1104.0,0.00017,2]
[395308035,1764606641850,-700.0,0.00017,2]
[395308036,1764606641859,-220.08245692,0.00017,2]
[395308037,1764606641869,-163.46786297,0.00017,2]
[395308038,1764606641878,-13471.2450654,0.00017,2]
[395308039,1764606641888,-2000.0,0.00017,2]
[395308040,1764606641898,-658.2817103,0.00017,2]
[395308041,1764606641907,-250.0,0.00017,2]
[395308042,1764606641917,-33420.2242613,0.00017,2]
[395308043,1764606641927,-68994.95485219,0.00017,2]
[395308044,1764606641938,-4091779.85674135,0.00017,2]
[395308045,1764606641962,-197601.27752883,0.00017,2]
[395308046,1764606641973,-5554.07116313,0.00017,2]
[395308047,1764606641986,-2735.0,0.00017,2]
[395308048,1764606641997,-378.86105941,0.00017,2]
[395308065,1764606643318,-6040.04781648,0.00017,2]
[395308066,1764606643331,-34990.1575605,0.00017,2]
[395308067,1764606643456,150.0,0.00022,30]
[395308068,1764606643663,-737.30008267,0.00014909,2]
[395308069,1764606643673,-456353.96742724,0.00017,2]
[395308070,1764606643698,-273.1,0.00017,2]
[395308071,1764606643710,-376.395,0.00017,2]
[395308087,1764606646180,-226.43577512,0.00016988,2]
[395308089,1764606646190,-278.58218904,0.00017,2]
[395308096,1764606646320,-27337.00000029,0.00017,2]
[395308097,1764606646396,-1587.635991,0.00017,2]
[395308098,1764606646408,-521.50544742,0.00017,2]
[395308099,1764606646569,-28750.40785919,0.00017,2]
[395308101,1764606646580,-540.52,0.00017,2]
[395308114,1764606660372,500.0,0.00022,30]
[395308115,1764606663047,150.0,0.00022,30]
[395308116,1764606668509,150.0,0.00022,30]
[395308117,1764606669899,500.0,0.00022,30]
[395308118,1764606671678,200.0,0.00022,30]
[395308119,1764606672550,150.0,0.00022,30]
[395308120,1764606672961,500.0,0.00022,30]
[395308121,1764606674519,150.0,0.00022,30]
[395308122,1764606675417,150.0,0.00022,30]
[395308123,1764606678556,150.0,0.00022,30]
[395308124,1764606808497,500.0,0.00022,30]
[395308125,1764606810764,500.0,0.00022,30]
[395308126,1764606821024,500.0,0.00022,30]
[395308127,1764606822407,150.0,0.00022,30]
[395308128,1764606825320,500.0,0.00022,30]
[395308129,1764606826460,150.0,0.00022,30]
[395308130,1764606854301,455.0,0.00022,30]
[395308131,1764606864739,500.0,0.00022,30]
[395308132,1764606873571,500.0,0.00022,30]
[395308134,1764607046097,150.0,0.00022,30]
[395308135,1764607047362,500.0,0.00022,30]
[395308136,1764607053967,150.0,0.00022,30]
[395308137,1764607055660,167.12923974,0.00022,30]
[395308138,1764607056705,500.0,0.00022,30]
[395308139,1764607059972,150.0,0.00022,30]
[395308141,1764607155068,632.0,0.00022,30]
[395308142,1764607170908,500.0,0.00022,30]
[395308143,1764607220646,150.0,0.00022,30]
[395308144,1764607222702,150.0,0.00022,30]
[395308145,1764607223742,150.0,0.00022,30]
[395308146,1764607225022,150.0,0.00022,30]
[395308147,1764607227279,150.0,0.00022,30]
[395308148,1764607230573,150.0,0.00022,30]
[395308149,1764607234312,150.0,0.00022,30]
[395308150,1764607235158,150.0,0.00022,30]
[395308151,1764607236406,150.0,0.00022,30]
[395308152,1764607238306,150.0,0.00022,30]
[395308153,1764607240014,150.0,0.00022,30]
[395308154,1764607241187,150.0,0.00022,30]
[395308155,1764607242432,150.0,0.00022,30]
[395308156,1764607243443,150.0,0.00022,30]
[395308157,1764607288090,150.0,0.00022,30]
[395308158,1764607292064,165.54924187,0.00022,30]
[395308159,1764607293877,150.0,0.00022,30]
[395308160,1764607296092,500.0,0.00022,30]
[395308161,1764607299116,500.0,0.00022,30]
[395308162,1764607300279,151.65385416,0.00022,30]
[395308163,1764607302217,500.0,0.00022,30]
[395308164,1764607311406,500.0,0.00022,30]
[395308165,1764607313696,270.01999727,0.00022,30]
[395308166,1764607314276,500.0,0.00022,30]
[395308167,1764607317300,500.0,0.00022,30]
[395308168,1764607327059,207.08566022,0.00022,30]
[395308169,1764607327933,150.0,0.00022,30]
[395308170,1764607328617,500.0,0.00022,30]
[395308171,1764607328883,500.0,0.00022,30]
[395308172,1764607330963,250.0,0.00022,30]
[395308173,1764607530067,605.0,0.00022,30]
[395308174,1764607552933,500.0,0.00022,30]
[395308175,1764607565023,500.0,0.00022,30]
[395308176,1764607565068,209.56051901,0.000145,4]
[395308177,1764607565238,500.0,0.00022,30]
[395308178,1764607582387,500.0,0.00022,30]
[395308179,1764607584090,500.0,0.00022,30]
[395308180,1764607592111,500.0,0.00022,30]
[395308181,1764607593398,500.0,0.00022,30]
[395308182,1764607600096,150.0,0.00022,30]
[395308183,1764607601028,500.0,0.00022,30]
[395308184,1764607601628,500.0,0.00022,30]
[395308192,1764607667933,5000.0,0.00025,120]
[395308193,1764607750697,500.0,0.00022,30]
[395308194,1764607751922,500.0,0.00022,30]
[395308197,1764607764349,500.0,0.00022,30]
[395308218,1764607831367,-200.0,0.00012299,2]
[395308219,1764607831378,-200.0,0.00013524,2]
[395308220,1764607831387,-501.82442469,0.00013526,2]
[395308221,1764607831398,-250.0,0.00013529,2]
[395308222,1764607831407,-250.0,0.00013529,2]
[395308223,1764607831417,-193.0,0.00013529,2]
[395308224,1764607831427,-250.0,0.00013529,2]
[395308225,1764607831437,-166.66,0.00013699,2]
[395308226,1764607831447,-300.0,0.00013768,2]
[395308227,1764607831457,-1200.0,0.00013768,2]
[395308228,1764607831467,-300.0,0.00013768,2]
[395308229,1764607831477,-307.92513303,0.00013769,2]
[395308230,1764607831489,-5025.51913818,0.00013769,2]
[395308231,1764607831500,-2651.87572879,0.00013769,2]
[395308232,1764607831511,-200.0,0.00013849,2]
[395308233,1764607831521,-999.0,0.00013887,3]
[395308234,1764607831531,-166.66,0.00013956,2]
[395308235,1764607831540,-1500.0,0.00014006,2]
[395308236,1764607831549,-166.66,0.00014214,2]
[395308237,1764607831558,-373.0,0.00014315,2]
[395308238,1764607831568,-625.55,0.00014325,2]
[395308239,1764607831578,-251.0,0.00014343,2]
[395308240,1764607831587,-290.0,0.00014372,2]
[395308241,1764607831597,-303.0,0.000144,2]
[395308242,1764607831606,-1436.0,0.00014405,2]
[395308243,1764607831616,-1424.0,0.00014434,2]
[395308244,1764607831626,-1200.0,0.00014457,2]
[395308245,1764607831641,-293.0,0.00014457,2]
[395308247,1764607831651,-4110.84,0.0001446,2]
[395308248,1764607831661,-299.99,0.0001446,2]
[395308249,1764607831671,-1041.1,0.0001446,2]
[395308250,1764607831682,-2511.81,0.0001446,2]
[395308251,1764607831691,-279.0,0.00014462,2]
[395308252,1764607831701,-166.66,0.00014472,2]
[395308253,1764607831711,-1694.0,0.00014491,2]
[395308254,1764607831721,-1383.0,0.0001452,2]
[395308255,1764607831731,-151.0,0.00014521,2]
[395308256,1764607831740,-47573.12992631,0.00014709,2]
[395308257,1764607831752,-67652.30643016,0.00014709,2]
[395308258,1764607831763,-81047.4379085,0.00014709,2]
[395308259,1764607831775,-204175.88484271,0.00014709,2]
[395308260,1764607831787,-820.7253007,0.00014709,2]
[395308261,1764607831808,-335.26580545,0.00014709,2]
[395308262,1764607831819,-413.55,0.00014709,2]
[395308263,1764607831831,-308.0124,0.00014709,2]
[395308264,1764607831843,-341.1408,0.00014709,2]
[395308265,1764607831863,-6806.35260329,0.00014709,2]
[395308266,1764607831875,-3106.81981586,0.00014709,2]
[395308267,1764607831886,-2628.27634567,0.00014709,2]
[395308268,1764607831897,-324085.97780515,0.00014709,2]
[395308269,1764607836297,580.0,0.00022,30]
[395308285,1764607838079,-1053.20336897,0.000147,2]
[395308286,1764607838092,-211.52706743,0.00014708,2]
[395308287,1764607838102,-20705.1200162,0.00014709,2]
[395308288,1764607838113,-166.66,0.0001473,2]
[395308289,1764607838123,-1378.0,0.00014733,2]
[395308290,1764607838132,-1825.0,0.00014763,2]
[395308291,1764607838142,-150.0,0.00014799,2]
[395308292,1764607838152,-1399.0,0.000148,2]
[395308293,1764607838162,-200.0,0.000148,2]
[395308294,1764607838172,-200.0,0.000148,2]
[395308295,1764607838182,-500.0,0.000148,2]
[395308296,1764607838191,-200.0,0.000148,2]
[395308297,1764607838202,-500.0,0.000148,2]
[395308298,1764607838212,-500.0,0.000148,2]
[395308299,1764607838222,-500.0,0.000148,2]
[395308300,1764607838233,-500.0,0.000148,2]
[395308301,1764607838244,-500.0,0.000148,2]
[395308302,1764607838255,-500.0,0.000148,2]
[395308303,1764607838265,-500.0,0.000148,2]
[395308304,1764607838275,-500.0,0.000148,2]
[395308305,1764607838286,-500.0,0.000148,2]
[395308306,1764607838296,-500.0,0.000148,2]
[395308307,1764607838306,-500.0,0.000148,2]
[395308308,1764607838316,-500.0,0.000148,2]
[395308309,1764607838326,-500.0,0.000148,2]
[395308310,1764607838336,-500.0,0.000148,2]
[395308311,1764607838348,-151.0,0.000148,2]
[395308312,1764607838358,-151.0,0.000148,2]
[395308313,1764607838368,-151.0,0.000148,2]
[395308314,1764607838378,-151.0,0.000148,2]
[395308315,1764607838389,-151.0,0.000148,2]
[395308316,1764607838400,-151.0,0.000148,2]
[395308317,1764607838411,-151.0,0.000148,2]
[395308318,1764607838421,-151.0,0.000148,2]
[395308319,1764607838431,-151.0,0.000148,2]
[395308320,1764607838441,-500.0,0.000148,2]
[395308321,1764607838451,-151.0,0.000148,2]
[395308322,1764607838461,-151.0,0.000148,2]
[395308323,1764607838471,-500.0,0.000148,2]
[395308324,1764607838481,-151.0,0.000148,2]
[395308325,1764607838492,-500.0,0.000148,2]
[395308326,1764607838502,-151.0,0.000148,2]
[395308327,1764607838512,-151.0,0.000148,2]
[395308328,1764607838521,-500.0,0.000148,2]
[395308329,1764607838531,-151.0,0.000148,2]
[395308330,1764607838541,-151.0,0.000148,2]
[395308331,1764607838550,-500.0,0.000148,2]
[395308332,1764607838560,-151.0,0.000148,2]
[395308333,1764607838570,-151.0,0.000148,2]
[395308334,1764607838580,-500.0,0.000148,2]
[395308335,1764607838591,-151.0,0.000148,2]
[395308336,1764607838602,-151.0,0.000148,2]
[395308337,1764607838612,-500.0,0.000148,2]
[395308338,1764607838622,-151.0,0.000148,2]
[395308339,1764607838632,-500.0,0.000148,2]
[395308340,1764607838647,-151.0,0.000148,2]
[395308341,1764607838657,-500.0,0.000148,2]
[395308342,1764607838667,-151.0,0.000148,2]
[395308343,1764607838678,-500.0,0.000148,2]
[395308344,1764607838688,-151.0,0.000148,2]
[395308345,1764607838698,-500.0,0.000148,2]
[395308346,1764607838708,-151.0,0.000148,2]
[395308347,1764607838720,-500.0,0.000148,2]
[395308348,1764607838729,-151.0,0.000148,2]
[395308349,1764607838740,-500.0,0.000148,2]
[395308350,1764607838750,-151.0,0.000148,2]
[395308351,1764607838760,-500.0,0.000148,2]
[395308352,1764607838770,-151.0,0.000148,2]
[395308353,1764607838780,-151.0,0.000148,2]
[395308354,1764607838790,-151.0,0.000148,2]
[395308355,1764607838800,-151.0,0.000148,2]
[395308356,1764607838810,-151.0,0.000148,2]
[395308357,1764607838820,-151.0,0.000148,2]
[395308358,1764607838830,-158.27356486,0.000148,2]
[395308359,1764607838840,-2047.108,0.00014809,2]
[395308360,1764607838849,-173.213,0.00014809,2]
[395308361,1764607838859,-20255.66887118,0.00014809,2]
[395308362,1764607838869,-716.52354451,0.00014809,2]
[395308363,1764607838879,-2498.2296,0.00014809,2]
[395308364,1764607838890,-6671.8157,0.00014809,2]
[395308365,1764607838900,-280.8878,0.00014809,2]
[395308366,1764607838910,-2491.4269,0.00014809,2]
[395308367,1764607838920,-2628.34256685,0.00014809,2]
[395308371,1764607839844,-581.26437773,0.00014708,2]
[395308372,1764607839854,-500.0,0.00014708,2]
[395308373,1764607839864,-500.0,0.00014708,2]
[395308375,1764607839873,-500.0,0.00014708,2]
[395308377,1764607839884,-500.0,0.00014708,2]
[395308378,1764607839893,-289.03410708,0.00014708,2]
[395308379,1764607839905,-500.0,0.00014708,2]
[395308380,1764607839918,-500.0,0.00014708,2]
[395308381,1764607839928,-500.0,0.00014708,2]
[395308382,1764607839937,-500.0,0.00014708,2]
[395308383,1764607839947,-552.79781674,0.00014708,2]
[395308384,1764607839956,-500.0,0.00014708,2]
[395308385,1764607839966,-500.0,0.00014708,2]
[395308386,1764607839975,-85879.24003315,0.00014809,2]
[395308387,1764607839985,-1000.0,0.00014809,2]
[395308388,1764607839994,-1807.7042,0.00014809,2]
[395308389,1764607840006,-209.0,0.00014838,2]
[395308390,1764607840016,-500.0,0.00014908,2]
[395308391,1764607840026,-500.0,0.00014908,2]
[395308392,1764607840036,-500.0,0.00014908,2]
[395308393,1764607840045,-544.34192817,0.00014908,2]
[395308394,1764607840055,-242.79480687,0.00014908,2]
[395308395,1764607840064,-500.0,0.00014908,2]
[395308396,1764607840074,-500.0,0.00014908,2]
[395308397,1764607840083,-500.0,0.00014908,2]
[395308398,1764607840093,-500.0,0.00014908,2]
[395308399,1764607840102,-500.0,0.00014908,2]
[395308400,1764607840112,-216.0958378,0.00014908,2]
[395308401,1764607840122,-499.60724259,0.00014908,2]
[395308402,1764607840131,-500.0,0.00014908,2]
[395308403,1764607840141,-500.0,0.00014908,2]
[395308404,1764607840150,-500.0,0.00014908,2]
[395308405,1764607840160,-500.0,0.00014908,2]
[395308406,1764607840170,-500.0,0.00014908,2]
[395308407,1764607840179,-500.0,0.00014908,2]
[395308408,1764607840189,-500.0,0.00014908,2]
[395308409,1764607840199,-394.01424542,0.00014908,2]
[395308410,1764607840208,-500.0,0.00014908,2]
[395308411,1764607840219,-500.0,0.00014908,2]
[395308412,1764607840228,-500.0,0.00014908,2]
[395308413,1764607840239,-522.47521665,0.00014908,2]
[395308414,1764607840248,-500.0,0.00014908,2]
[395308415,1764607840257,-500.0,0.00014908,2]
[395308416,1764607840267,-500.0,0.00014908,2]
[395308417,1764607840276,-500.0,0.00014908,2]
[395308418,1764607840289,-500.0,0.00014908,2]
[395308419,1764607840301,-500.0,0.00014908,2]
[395308420,1764607840311,-500.0,0.00014908,2]
[395308421,1764607840320,-501.94091737,0.00014908,2]
[395308422,1764607840330,-517.31808734,0.00014908,2]
[395308423,1764607840340,-500.0,0.00014908,2]
[395308424,1764607840350,-500.0,0.00014908,2]
[395308425,1764607840360,-393.0941693,0.00014908,2]
[395308426,1764607840370,-500.0,0.00014908,2]
[395308427,1764607840386,-500.0,0.00014908,2]
[395308428,1764607840402,-500.0,0.00014908,2]
[395308429,1764607840411,-500.0,0.00014908,2]
[395308430,1764607840421,-500.0,0.00014908,2]
[395308431,1764607840432,-500.0,0.00014908,2]
[395308432,1764607840442,-500.0,0.00014908,2]
[395308433,1764607840452,-500.0,0.00014908,2]
[395308434,1764607840463,-500.0,0.00014908,2]
[395308435,1764607840473,-485.52312637,0.00014908,2]
[395308436,1764607840483,-500.0,0.00014908,2]
[395308437,1764607840493,-500.0,0.00014908,2]
[395308438,1764607840502,-500.0,0.00014908,2]
[395308439,1764607840512,-500.0,0.00014908,2]
[395308440,1764607840522,-500.0,0.00014908,2]
[395308441,1764607840532,-600.0,0.00014909,2]
[395308442,1764607840542,-1000.0,0.00014909,2]
[395308443,1764607840552,-166.66,0.00014987,2]
[395308444,1764607840562,-500.0,0.00015008,2]
[395308445,1764607840571,-500.0,0.00015008,2]
[395308446,1764607840581,-411.9192268,0.00015008,2]
[395308447,1764607840592,-556.83585957,0.00015008,2]
[395308448,1764607840602,-500.0,0.00015008,2]
[395308449,1764607840612,-500.0,0.00015008,2]
[395308450,1764607840622,-500.0,0.00015008,2]
[395308451,1764607840632,-500.0,0.00015008,2]
[395308452,1764607840645,-500.0,0.00015008,2]
[395308453,1764607840655,-500.0,0.00015008,2]
[395308454,1764607840666,-151.0,0.00015019,2]
[395308455,1764607840677,-73844.80107179,0.00015022,2]
[395308456,1764607840687,-500.0,0.00015041,2]
[395308457,1764607840696,-500.0,0.00015041,2]
[395308458,1764607840707,-500.274,0.00015041,2]
[395308459,1764607840717,-20255.66887113,0.00015041,2]
[395308460,1764607840727,-151.0,0.00015069,2]
[395308461,1764607840738,-1399.0,0.00015074,2]
[395308462,1764607840747,-420.0,0.00015088,2]
[395308463,1764607840757,-420.0,0.00015088,2]
[395308464,1764607840767,-716.52354449,0.00015108,2]
[395308465,1764607840777,-1680.0,0.00015145,2]
[395308466,1764607840787,-777.87712558,0.00015272,2]
[395308467,1764607840798,-20255.66887113,0.00015274,2]
[395308468,1764607840808,-150.0,0.00015288,2]
[395308469,1764607840818,-150.0,0.00015288,2]
[395308470,1764607840833,-150.00000001,0.00015288,2]
[395308471,1764607840843,-150.0,0.00015288,2]
[395308472,1764607840853,-150.0,0.00015288,2]
[395308473,1764607840863,-150.0,0.00015288,2]